[Event "45th FIDE Olympiad 2024"]
[Site "Budapest"]
[Date "2024.09.18"]
[Round "7.248"]
[White "Linn, Phone Myat"]
[Black "Shiferaw, Yalemzewde Mekonnen"]
[Result "0-1"]
[WhiteElo "1763"]
[BlackElo "2025"]
[PlyCount "86"]
[EventDate "2024.09.05"]
[EventType "team-tourn"]
[EventCountry "HUN"]
[WhiteTeam "Myanmar"]
[BlackTeam "Ethiopia"]
[WhiteTeamCountry "MYA"]
[BlackTeamCountry "ETH"]
[TimeControl "40/5400+30:1800+30"]

1. e4 c5 2. Nf3 d6 3. d4 cxd4 4. Nxd4 Nf6 5. Nc3 a6 6. Bg5 e6 7. f4 Qb6 8. Qd2 Qxb2 9. Rb1 Qa3 10. f5 Nc6 11. fxe6 fxe6 12. Bc4 Nxd4 13. Qxd4 Be7 14. e5 dxe5 15. Qxe5 Qc5 16. Qxc5 Bxc5 17. Bxf6 gxf6 18. Ne4 Be7 19. O-O Rf8 20. a4 Bd7 21. Ng3 O-O-O 22. Rf3 e5 23. Bxa6 Bc5+ 24. Kf1 Bc6 25. Rc3 bxa6 26. Rxc5 Kc7 27. Nf5 Rd5 28. Rxc6+ Kxc6 29. Ne7+ Kc5 30. Nxd5 Kxd5 31. Rb6 f5 32. Rxa6 Rc8 33. Rf6 Ke4 34. Rh6 Rxc2 35. Rxh7 Ra2 36. Rh4+ f4 37. g3 Kf3 38. Ke1 Ke3 39. Kd1 f3 40. Rh5 e4 41. Rf5 Rxh2 42. Rb5 Rh1+ 43. Kc2 f2 {0-} 0-1

[Event "45th FIDE Olympiad 2024"]
[Site "Budapest"]
[Date "2024.09.18"]
[Round "7.249"]
[White "Krieger, Markus"]
[Black "Aziz, Husain"]
[Result "0-1"]
[WhiteElo "2153"]
[BlackElo "2340"]
[PlyCount "74"]
[EventDate "2024.09.05"]
[EventType "team-tourn"]
[EventCountry "HUN"]
[WhiteTeam "Liechtenstein"]
[BlackTeam "Qatar"]
[WhiteTeamCountry "LIE"]
[BlackTeamCountry "QAT"]
[TimeControl "40/5400+30:1800+30"]

1. e4 c6 2. d4 d5 3. exd5 cxd5 4. Nf3 Nc6 5. Ne5 Nf6 6. Bb5 Bd7 7. Nxd7 Qxd7 8. c3 e6 9. O-O Bd6 10. Nd2 Qc7 11. g3 O-O 12. Re1 a6 13. Bd3 b5 14. a3 Na5 15. Nf3 Nc4 16. Qe2 Rfe8 17. Ne5 Bxe5 18. dxe5 Nd7 19. Bf4 Nf8 20. h4 Ng6 21. h5 Nxf4 22. gxf4 f5 23. exf6 Qxf4 24. Bxc4 bxc4 25. fxg7 Ra7 26. Qe5 Rxg7+ 27. Kf1 Qf3 28. Rad1 h6 29. Qh2 Rg5 30. Rd4 Rxh5 31. Rh4 Qd3+ 32. Re2 Rxh4 33. Qxh4 Kh7 34. Qf4 Qg6 35. Re3 Rg8 36. Qe5 Qb1+ 37. Re1 Qd3+ {0-} 0-1

[Event "45th FIDE Olympiad 2024"]
[Site "Budapest"]
[Date "2024.09.18"]
[Round "7.250"]
[White "Erfan, Mohamad Firdaus"]
[Black "Heron, Andrew"]
[Result "1/2-1/2"]
[WhiteElo "1758"]
[BlackElo "2026"]
[PlyCount "111"]
[EventDate "2024.09.05"]
[EventType "team-tourn"]
[EventCountry "HUN"]
[WhiteTeam "Qatar"]
[BlackTeam "Liechtenstein"]
[WhiteTeamCountry "QAT"]
[BlackTeamCountry "LIE"]
[TimeControl "40/5400+30:1800+30"]

1. d4 Nf6 2. c4 g6 3. Nc3 d5 4. cxd5 Nxd5 5. e4 Nxc3 6. bxc3 Bg7 7. Nf3 c5 8. h3 Nc6 9. Be3 O-O 10. Be2 cxd4 11. cxd4 Qa5+ 12. Bd2 Qa3 13. d5 Ne5 14. Nxe5 Bxe5 15. O-O Bd7 16. Rb1 Ba4 17. Qc1 Qxa2 18. Bc4 Qc2 19. Qxc2 Bxc2 20. Rxb7 Bd6 21. Re1 Rfb8 22. Ba6 Rxb7 23. Bxb7 Rb8 24. Bc6 Rb1 25. Rxb1 Bxb1 26. Be3 a5 27. Bb6 Bxe4 28. f3 Bd3 29. Bxa5 f5 30. Bb6 f4 31. h4 Kg7 32. Kh2 Bf5 33. Bb5 Kf6 34. Bd4+ Be5 35. Bc5 Kf7 36. Bf2 Bc8 37. Bd3 Bb7 38. Be4 Ke8 39. g3 fxg3+ 40. Bxg3 Bxg3+ 41. Kxg3 Bc8 42. h5 Kf7 43. hxg6+ hxg6 44. f4 Kf6 45. Kf3 Bb7 46. Ke3 Ba6 47. Kd4 Bc8 48. Ke3 Bg4 49. Kd4 Bh5 50. Ke3 g5 51. fxg5+ Kxg5 52. Kd4 Kf4 53. Bd3 Bf3 54. Bc2 Bxd5 55. Kxd5 e6+ 56. Kxe6 1/2-1/2

[Event "45th FIDE Olympiad 2024"]
[Site "Budapest"]
[Date "2024.09.18"]
[Round "7.251"]
[White "Frick, Renato"]
[Black "Al-Kuwari, Turki"]
[Result "1-0"]
[WhiteElo "1925"]
[BlackElo "1577"]
[PlyCount "89"]
[EventDate "2024.09.05"]
[EventType "team-tourn"]
[EventCountry "HUN"]
[WhiteTeam "Liechtenstein"]
[BlackTeam "Qatar"]
[WhiteTeamCountry "LIE"]
[BlackTeamCountry "QAT"]
[TimeControl "40/5400+30:1800+30"]

1. e4 c5 2. Nf3 g6 3. c4 Bg7 4. d4 cxd4 5. Nxd4 Nc6 6. Be3 Nf6 7. Nc3 O-O 8. Nc2 d6 9. Be2 Bd7 10. f3 a6 11. Qd2 Qc7 12. Rc1 Rac8 13. O-O Rfd8 14. b3 Ne5 15. h3 Bc6 16. f4 Ned7 17. Bf3 Nc5 18. Bxc5 dxc5 19. Qe3 Bh6 20. e5 Nd7 21. Bxc6 Qxc6 22. Rcd1 Nb6 23. g4 Bg7 24. Ne4 Rd7 25. Rxd7 Nxd7 26. Rd1 b6 27. a4 f6 28. Qd3 Nf8 29. exf6 Bxf6 30. f5 Kg7 31. Qf3 Nd7 32. g5 Be5 33. Rd5 gxf5 34. Qxf5 e6 35. Rxd7+ Qxd7 36. Qxe5+ Kf8 37. Qh8+ Ke7 38. Qxh7+ Kd8 39. Qh8+ Kc7 40. Qe5+ Kc6 41. Ne3 Rf8 42. a5 Rf3 43. axb6 Rxe3 44. Qxc5+ Kb7 45. Qxe3 1-0

[Event "45th FIDE Olympiad 2024"]
[Site "Budapest"]
[Date "2024.09.18"]
[Round "7.252"]
[White "Al-Kuwari, Hamad"]
[Black "Schadler, Martin"]
[Result "1-0"]
[WhiteElo "1574"]
[BlackElo "1891"]
[Annotator "COMBH"]
[PlyCount "89"]
[EventDate "2024.09.05"]
[EventType "team-tourn"]
[EventCountry "HUN"]
[WhiteTeam "Qatar"]
[BlackTeam "Liechtenstein"]
[WhiteTeamCountry "QAT"]
[BlackTeamCountry "LIE"]
[TimeControl "40/5400+30:1800+30"]

1. e4 d5 2. exd5 Nf6 3. d4 Nxd5 4. c4 Nb6 5. Nf3 g6 6. Be2 Bg7 7. h3 O-O 8. Nc3 c5 9. Be3 Na6 10. O-O cxd4 11. Bxd4 Bxd4 12. Qxd4 Qxd4 13. Nxd4 Bd7 14. Bf3 e5 15. Nb3 Bc6 16. Bxc6 bxc6 17. Na5 Nb4 18. Rad1 c5 19. Rfe1 Rfe8 20. Re2 f5 21. a3 Na6 22. Nb5 e4 23. b3 Re7 24. f3 e3 25. f4 Re4 26. g3 Rb8 27. Nc6 Rb7 28. Nd6 Rd7 29. Ne5 Rd4 30. Rxd4 cxd4 31. Nxd7 Nxd7 32. Nb5 d3 33. Rxe3 Nac5 34. Nc3 d2 35. Nd1 Ne4 36. b4 Nb6 37. c5 Nc4 38. Rd3 g5 39. c6 Nb6 40. c7 Kg7 41. Rd8 h5 42. c8=Q Nxc8 43. Rxc8 Nxg3 44. fxg5 f4 45. Kf2 1-0

[Event "45th FIDE Olympiad 2024"]
[Site "Budapest"]
[Date "2024.09.18"]
[Round "7.253"]
[White "Dominguez, Jose Manuel"]
[Black "Sihlongonyane, Sikhanyiso"]
[Result "1-0"]
[WhiteElo "2195"]
[BlackElo "1813"]
[PlyCount "125"]
[EventDate "2024.09.05"]
[EventType "team-tourn"]
[EventCountry "HUN"]
[WhiteTeam "Dominican Republic"]
[BlackTeam "Eswatini"]
[WhiteTeamCountry "DOM"]
[TimeControl "40/5400+30:1800+30"]

1. Nf3 d5 2. b4 Nf6 3. Bb2 e6 4. a3 c5 5. b5 a6 6. e3 axb5 7. Bxb5+ Bd7 8. Be2 Be7 9. Ne5 O-O 10. Nxd7 Qxd7 11. O-O Nc6 12. c4 d4 13. d3 e5 14. Nd2 Ra6 15. Kh1 Bd6 16. e4 Ne7 17. g3 Ng6 18. Kg2 h6 19. h4 Qc7 20. Bc1 Rfa8 21. Rh1 Nf8 22. h5 Ne6 23. Nf3 Nh7 24. Nh4 Nhg5 25. Bg4 Rb8 26. Rb1 Rb6 27. Ra1 Ra6 28. a4 Rba8 29. Bd2 Qd7 30. Nf5 Bc7 31. Bxg5 hxg5 32. h6 g6 33. Ng7 Kh7 34. Bxe6 fxe6 35. Qg4 Bd8 36. Rab1 Bf6 37. a5 Rxa5 38. Nxe6 Qe7 39. Rb6 R8a6 40. Rhb1 Rxb6 41. Rxb6 Ra6 42. Nf8+ Kxh6 43. Rxb7 Qxb7 44. Qh3+ Kg7 45. Qh7+ Kxf8 46. Qxb7 Re6 47. Qc8+ Kf7 48. Qxc5 Be7 49. Qd5 Kf6 50. c5 g4 51. c6 Bd6 52. Qa5 Re7 53. Qd8 Bc7 54. Qc8 Bd6 55. Kf1 Rc7 56. Qa8 Ke7 57. Ke2 Kf6 58. Kd1 Ke7 59. Kc2 Bc5 60. Kb3 Kd6 61. Kc4 Rxc6 62. Qd8+ Ke6 63. Qd5+ 1-0

[Event "45th FIDE Olympiad 2024"]
[Site "Budapest"]
[Date "2024.09.18"]
[Round "7.254"]
[White "Dlamini, Simphiwe"]
[Black "Camacho Campusano, David Daniel"]
[Result "1/2-1/2"]
[WhiteElo "1747"]
[BlackElo "2219"]
[PlyCount "72"]
[EventDate "2024.09.05"]
[EventType "team-tourn"]
[EventCountry "HUN"]
[WhiteTeam "Eswatini"]
[BlackTeam "Dominican Republic"]
[BlackTeamCountry "DOM"]
[TimeControl "40/5400+30:1800+30"]

1. e4 e5 2. Nf3 Nc6 3. d3 Nf6 4. g3 d5 5. Nbd2 dxe4 6. dxe4 Bg4 7. Bg2 Bc5 8. O-O Qd7 9. c3 O-O 10. b4 Bd6 11. Re1 a5 12. b5 Ne7 13. a4 Rfd8 14. Nc4 Qe6 15. Qe2 h6 16. Bb2 Nc8 17. Rad1 Nb6 18. Nxd6 Rxd6 19. c4 Nxa4 20. h3 Bxf3 21. Bxf3 Nxb2 22. Qxb2 a4 23. Rxd6 cxd6 24. Qb4 b6 25. Ra1 a3 26. Ra2 Qc8 27. Qb3 Qc5 28. Qd3 Nd7 29. Be2 Qb4 30. Kg2 Nc5 31. Qxd6 Qb2 32. Rxb2 axb2 33. Bd3 Nxd3 34. Qxd3 Ra1 35. Qd8+ Kh7 36. Qd7 b1=Q 1/2-1/2

[Event "45th FIDE Olympiad 2024"]
[Site "Budapest"]
[Date "2024.09.18"]
[Round "7.255"]
[White "Jimenez Jimenez, Leandro"]
[Black "Nxumalo, Vuyo"]
[Result "1-0"]
[WhiteElo "2188"]
[BlackElo "1746"]
[PlyCount "135"]
[EventDate "2024.09.05"]
[EventType "team-tourn"]
[EventCountry "HUN"]
[WhiteTeam "Dominican Republic"]
[BlackTeam "Eswatini"]
[WhiteTeamCountry "DOM"]
[TimeControl "40/5400+30:1800+30"]

1. d4 d5 2. c4 e6 3. Nf3 Nf6 4. g3 c6 5. Bg2 Bd6 6. O-O O-O 7. Qc2 Nbd7 8. Nbd2 Re8 9. e4 dxe4 10. Ng5 e5 11. Ndxe4 Bc7 12. d5 cxd5 13. cxd5 h6 14. Nxf6+ Nxf6 15. Ne4 Nxd5 16. Rd1 Be6 17. Nc5 Nb4 18. Qa4 b5 19. Bxa8 bxa4 20. Rxd8 Rxd8 21. Nxe6 fxe6 22. Bf3 Nd3 23. Be3 Bb6 24. Rd1 Nxb2 25. Rxd8+ Bxd8 26. Bxa7 Nc4 27. Bd1 Nb2 28. Be2 Kf7 29. Bc5 Be7 30. Be3 e4 31. Bh5+ g6 32. Be2 h5 33. Bf1 Nd1 34. Bd4 Bf6 35. Bc5 Nc3 36. Bc4 Nd5 37. Bb5 Nc3 38. Bc4 Be7 39. Bd4 Bf6 40. Ba7 Ke7 41. Bc5+ Kf7 42. Kf1 Be5 43. Ke1 Kf6 44. Kd2 Kf5 45. h4 Bf6 46. Bb6 Nd5 47. Bc5 Bb2 48. Be2 Ke5 49. Bb5 a3 50. Ba4 Bd4 51. Bxd4+ Kxd4 52. Be8 e3+ 53. fxe3+ Nxe3 54. Bxg6 Nf1+ 55. Kc2 Nxg3 56. Kb3 e5 57. Kxa3 e4 58. Kb3 Nf1 59. Bxh5 Nd2+ 60. Kc2 e3 61. Be2 Ne4 62. h5 Ng3 63. h6 Nxe2 64. h7 Ke4 65. h8=Q Nd4+ 66. Kd1 Kd3 67. Qh7+ Kc3 68. Qe4 1-0